Cogmind - Beta 14 @@@ ROGUE MODE // 2024.09.23 @ 18:41:55 Player: youngster Result: Destroyed by 4Y-9V5(g) with Beamcaster Performance ------------- Evolutions (2) 1000 Regions Visited (10) 2000 Robots Destroyed (165) 825 Value Destroyed (4003) 4003 Prototype IDs (46) 920 Alien Tech Used (0) 0 Bonus (878) 878 TOTAL SCORE: 9626 Bonus ------- High Alert Combat Kills 131 Follower Combat Kills 524 Aligned with FarCom 300 Friendly Fire -77 Cogmind --------- Core Integrity 0/550 Matter 190/300 Energy 309/310 System Corruption 0% Temperature Cool (9) Movement Core (1700) Ox33 Location -8/Scraptown Parts ------- > --- POWER (1) -------- Reinforced Fission Core > --- PROPULSION (3) --- (None) > --- UTILITY (4) ------ Huge Storage Unit > --- WEAPON (3) ------- (None) > --- INVENTORY (25) --- Advanced Treads Advanced Treads Tri-treads High-capacity Matter Pod (200) Siege Articulator Advanced Visual Processing Unit Seismic Detector Advanced Weapon Cycler Advanced Transmission Jammer Advanced Recalibrator Improved Assault Rifle Minigun Minigun 8R-AWN's Boregun 8R-AWN's Boregun Siege Cannon AWS/Autocannon Missile Launcher Makeshift Sword Peak State ------------ > --- POWER ------------ F-cell Engine > --- PROPULSION ------- Advanced Treads Advanced Treads Advanced Treads > --- UTILITY ---------- Huge Storage Unit Experimental Targeting Computer Advanced Weapon Cycler Light Armor Plating > --- WEAPON ----------- AWS/Autocannon > --- INVENTORY -------- Reinforced Fission Core Armored Treads Advanced Treads High-capacity Matter Pod Advanced Visual Processing Unit Seismic Detector Advanced Transmission Jammer Light Armor Plating Hardened Medium Armor Plating Layered Medium Armor Plating Reflective Plating Advanced Recalibrator Bomb Drone Bay Pulse Rifle Improved Assault Rifle Minigun Minigun Minigun 8R-AWN's Boregun 8R-AWN's Boregun Missile Launcher CPS Tube Makeshift Sword [Rating: 71] Favorites ----------- Power Deuterium Engine Engine Deuterium Engine Power Core Reinforced Fission Core Propulsion Light Treads Treads Light Treads Wheel Armored Wheel Utility Huge Storage Unit Device Seismic Detector Storage Huge Storage Unit Processor Improved Targeting Computer Hackware System Shield Protection Light Armor Plating Weapon Minigun Energy Gun Heavy Laser Ballistic Gun Minigun Ballistic Cannon AWS/Autocannon Launcher Missile Launcher Special Weapon CPS Tube Impact Weapon Shock Maul Slashing Weapon Makeshift Sword Special Melee Weapon Improved Datajack Build | -11 -10 -10 -9 -9 -9 -8 -8 -8 -8 -8 ------- Run | Yrd Mat Min Mat Min Exi Min Mat Sto Rec Scr Slots Evolved 4 | . . . 2 . . . 2 . . . Power . | . . . . . . . . . . . Propulsion 1 | . . . . . . . 1 . . . Utility 2 | . . . 2 . . . . . . . Weapon 1 | . . . . . . . 1 . . . Parts Attached 231 | 7 19 11 52 7 19 3 53 40 3 17 Power 7 | 1 . . 3 . . . 1 1 . 1 Engine 5 | 1 . . 3 . . . . 1 . . Core 2 | . . . . . . . 1 . . 1 Reactor . | . . . . . . . . . . . Propulsion 49 | 2 3 2 14 . 6 . 14 2 . 6 Treads 42 | 2 3 1 12 . 4 . 12 2 . 6 Leg . | . . . . . . . . . . . Wheel 7 | . . 1 2 . 2 . 2 . . . Hover . | . . . . . . . . . . . Flight . | . . . . . . . . . . . Utility 90 | 2 11 6 14 4 7 1 16 20 2 7 Device 44 | 1 4 3 4 2 1 1 8 17 2 1 Storage 7 | 1 2 1 1 . 2 . . . . . Processor 5 | . . . 2 . 1 . 1 . . 1 Hackware 2 | . . . . . . . 2 . . . Protection 32 | . 5 2 7 2 3 . 5 3 . 5 Artifact . | . . . . . . . . . . . Weapon 85 | 2 5 3 21 3 6 2 22 17 1 3 Energy Gun 4 | . 1 . . . . . 3 . . . Energy Cannon . | . . . . . . . . . . . Ballistic Gun 51 | 2 4 2 14 1 6 2 12 8 . . Ballistic Cannon 3 | . . . . . . . 1 . . 2 Launcher 4 | . . . . 1 . . . 3 . . Special Weapon 1 | . . . . . . . . . . 1 Impact Weapon 1 | . . . . . . . . 1 . . Slashing Weapon 19 | . . 1 7 . . . 6 5 . . Piercing Weapon . | . . . . . . . . . . . Special Melee Weapon 2 | . . . . 1 . . . . 1 . Unidentified Prototypes 3 | . . 1 . . . . . 2 . . Parts Lost 29 | . 1 1 2 . 6 . 5 2 . 12 Power 1 | . . . . . . . . . . 1 Propulsion 10 | . 1 1 1 . 2 . 1 . . 4 Utility 10 | . . . . . 1 . 1 1 . 7 Weapon 8 | . . . 1 . 3 . 3 1 . . Highest Loss Streak 12 | . 1 1 1 . 6 . 2 1 . 12 To Critical Strikes 3 | . . . . . 3 . . . . . Average Slot Usage (%) 98 | . 99 99 99 100 96 100 99 99 100 92 Engine 9 | . 14 14 10 11 11 11 2 7 9 8 Core 1 | . . . . . . . 6 1 . . Treads 21 | . 27 16 20 11 14 11 24 27 27 26 Wheel 3 | . . 11 1 11 7 11 2 . . . Device 5 | . 9 7 2 8 2 11 5 9 9 8 Storage 10 | . 14 14 11 11 11 11 9 9 9 9 Processor 11 | . . . 14 22 19 22 9 9 9 9 Protection 9 | . 4 5 16 2 8 . 6 8 9 9 Ballistic Gun 20 | . 27 19 20 22 19 22 21 24 27 11 Slashing Weapon 1 | . . 8 1 . . . 2 2 . . Special Melee Weapon 1 | . . . . . 2 . . . . 5 Peak Build Rating 71 | 7 9 22 22 23 44 44 69 54 54 71 Average Rating 33 | 5 7 12 18 21 31 33 44 51 52 54 On Entrance 27 | . 7 9 14 22 21 44 29 53 54 53 Naked Turns . | . . . . . . . . . . . Heaviest Build 164 | 14 49 50 100 100 104 102 164 115 105 156 Greatest Support 66 | 40 40 40 40 12 40 12 66 66 66 66 Greatest Overweight (x) 9 | . 1 4 8 8 8 8 9 1 1 2 Average Overweight (x) 2 | . . 3 1 7 5 7 3 1 1 1 Largest Inventory Capacity 25 | 8 20 20 25 25 25 25 25 25 25 25 Average Capacity 22 | 7 15 19 20 25 22 25 25 25 25 25 Most Carried 25 | 5 20 20 23 25 25 25 25 25 25 25 Average Carried 21 | 2 12 19 19 24 20 25 24 24 25 24 Final Capacity 25 | 8 20 20 25 25 25 25 25 25 25 25 Final Carried 25 | 5 20 20 23 25 25 25 25 25 25 25 Class Distribution -------------------- 46% | Mutant 27% | Scavenger-Mutant 13% | Scavenger-Gunner 12% | Gunner Dominant Class ---------------- Mutant | -10/Materials Mutant | -10/Mines Mutant | -9/Materials Mutant | -9/Mines Mutant | -9/Exiles Scavenger-Mutant | -8/Mines Scavenger-Gunner | -8/Materials Gunner | -8/Storage Gunner | -8/Recycling Scavenger-Mutant | -8/Scraptown Resources | -11 -10 -10 -9 -9 -9 -8 -8 -8 -8 -8 ----------- Run | Yrd Mat Min Mat Min Exi Min Mat Sto Rec Scr Matter Collected 5261 | 290 510 457 890 96 849 . 1111 953 95 10 Remotely . | . . . . . . . . . . . Salvage Created 5814 | 125 588 243 1456 32 375 . 1661 1230 104 . Parts 402 | 9 36 18 102 10 51 . 97 72 7 . Haulers Intercepted 8 | . 2 . 6 . . . . . . . Recyclers Shooed 12 | . 2 2 6 1 . . 1 . . . Parts Field Recycled . | . . . . . . . . . . . Retrieved Matter . | . . . . . . . . . . . Parts Self-Destructed . | . . . . . . . . . . . Prevented . | . . . . . . . . . . . Kills | -11 -10 -10 -9 -9 -9 -8 -8 -8 -8 -8 ------- Run | Yrd Mat Min Mat Min Exi Min Mat Sto Rec Scr Combat Hostiles Destroyed 110 | . 13 9 27 4 1 . 25 29 2 . Melee 4 | . . . 2 . . . 2 . . . Guns 90 | . 13 9 25 1 1 . 22 17 2 . Cannons 1 | . . . . . . . 1 . . . AOE 15 | . . . . 3 . . . 12 . . Classes Destroyed 18 | 2 5 . 3 . 2 . 3 3 . . Worker 11 | . 1 . 1 . . . 4 5 . . Builder 4 | . . . 2 . . . 1 1 . . Tunneler 3 | 2 . . . 1 . . . . . . Hauler 8 | . 2 . 6 . . . . . . . Recycler 12 | 1 1 1 2 . . . 5 2 . . Mechanic 1 | . . . . . . . . 1 . . Operator 3 | . . . . . . . 3 . . . Turret 1 | . . . . . 1 . . . . . Watcher 6 | . 1 . 2 . . . 1 2 . . Swarmer 36 | . 6 8 10 4 . . 4 4 . . Grunt 45 | . 7 1 10 . . . 11 16 . . Brawler 2 | . . . . . . . . 2 . . Duelist 3 | . . . 1 . . . . 2 . . Protector 2 | . . . . . . . . 2 . . Sentry 18 | . . . 6 . . . 8 2 2 . Hunter 2 | . . . . . . . 1 1 . . Heavy 1 | . . . . . . . 1 . . . Zionite 5 | . . . . . 5 . . . . . Best Kill Streak 10 | 3 4 3 3 4 3 . 5 10 1 . Combat Bots Only 7 | . 4 3 3 4 1 . 4 7 1 . Max Kills in Single Turn 5 | 1 1 1 2 3 2 . 2 5 1 . Gunslinging 1 | . . . 1 . . . . . . . Exploded 4 | . . . . 3 . . . 4 . . Melee 1 | . . . 1 . . . 1 . . . Uniques/NPCs Destroyed 4 | . . . . . 4 . . . . . 8R-AWN (-9/Exiles) EX-DEC (-9/Exiles) EX-HEX (-9/Exiles) EX-BIN (-9/Exiles) Combat | -11 -10 -10 -9 -9 -9 -8 -8 -8 -8 -8 -------- Run | Yrd Mat Min Mat Min Exi Min Mat Sto Rec Scr Hostile Shots Fired 716 | . 94 51 139 17 67 . 150 81 4 113 Missed 172 | . 28 6 36 2 7 . 39 22 1 31 Damage Taken 8482 | . 705 392 1317 145 1182 . 1746 854 41 2100 Core 1002 | . 98 63 127 . 164 . 251 101 . 198 Absorbed by Shields . | . . . . . . . . . . . Redirected to Shielding 53 | . 20 11 22 . . . . . . . Ignored by Resistances 25 | . . . . . . . . . . 25 Regen/Repaired (Parts) 519 | . 102 . 276 . . . 35 106 . . Core Remaining (%) 54 | 100 . 35 . . . 27 . . . . Volleys Fired 428 | 8 85 26 117 7 48 3 79 48 5 2 Largest 3 | 2 2 2 2 2 2 2 3 3 3 1 Hottest 114 | 40 40 40 46 46 60 60 114 78 73 . Shots Fired 961 | 16 170 52 232 13 95 6 225 126 15 11 Gun 937 | 16 170 52 232 12 95 6 221 118 15 . Cannon 13 | . . . . . . . 4 . . 9 Launcher 9 | . . . . 1 . . . 8 . . Special 2 | . . . . . . . . . . 2 Kinetic 912 | 16 170 52 232 12 95 6 187 118 15 9 Thermal 38 | . . . . . . . 38 . . . Explosive 9 | . . . . 1 . . . 8 . . Electromagnetic . | . . . . . . . . . . . Robot Hit Streak 48 | 5 8 9 20 30 48 2 37 21 17 27 Robot Miss Streak 5 | 4 5 2 5 . 3 2 5 2 . . Penetration Max 1 | . . . . . 1 . 1 1 . . Secondary Targets 14 | . 2 4 2 . . . 1 5 . . Max Gunslinging Chain 1 | . 1 1 1 . . . 1 1 . . Autonomous 13 | . . . . . . . 4 . . 9 Shots Hit Robots 714 | 7 107 32 177 10 80 3 177 95 14 12 Core Hits 313 | 5 34 16 65 6 26 . 76 77 5 3 Critical Kills 4 | . 2 . . . 1 . 1 . . . Critical Parts Destroyed 15 | . 1 . . . 10 2 1 1 . . Critical Strikes 24 | . 3 . 2 . 11 2 3 1 . 2 Burn 1 | . . . . . . . 1 . . . Destroy 20 | . 3 . 1 . 11 2 2 1 . . Blast 2 | . . . . . . . . . . 2 Sever 1 | . . . 1 . . . . . . . Melee Attacks 87 | . . 19 21 . 4 . 30 11 . 2 Impact . | . . . . . . . . . . . Slashing 81 | . . 19 21 . . . 30 11 . . Piercing . | . . . . . . . . . . . Sneak Attacks 16 | . . . 4 . 4 . 5 1 . 2 Combat Hostiles . | . . . . . . . . . . . Follow-up Attacks . | . . . . . . . . . . . Damage Inflicted 14021 | 81 1082 331 2390 321 1254 58 3445 4080 220 759 Guns 9034 | 81 1074 331 1855 149 1254 58 2448 1566 218 . Cannons 1072 | . . . . . . . 313 . . 759 Explosions 2612 | . . . . 172 . . . 2440 . . Melee 1268 | . . . 514 . . . 680 74 . . Ramming 35 | . 8 . 21 . . . 4 . 2 . Kinetic 9598 | 81 1074 331 1855 149 1254 58 2253 1566 218 759 Thermal 508 | . . . . . . . 508 . . . Explosive 2612 | . . . . 172 . . . 2440 . . Electromagnetic . | . . . . . . . . . . . Impact . | . . . . . . . . . . . Slashing 1268 | . . . 514 . . . 680 74 . . Piercing . | . . . . . . . . . . . Highest Corruption . | . . . . . . . . . . . Average Corruption . | . . . . . . . . . . . Corruption Purged . | . . . . . . . . . . . Corruption Blocked . | . . . . . . . . . . . Overload Shots . | . . . . . . . . . . . Overflow Damage 235 | . . . 26 . . . 103 70 . 36 Projectiles 91 | . . . . . . . 55 . . 36 Explosions 36 | . . . . . . . . 36 . . Melee 108 | . . . 26 . . . 48 34 . . Knockbacks . | . . . . . . . . . . . Impact . | . . . . . . . . . . . Kinetic . | . . . . . . . . . . . Secondary . | . . . . . . . . . . . Self-Inflicted Damage . | . . . . . . . . . . . Shots . | . . . . . . . . . . . Rammed 10 | . 4 . 4 . . . 1 . 1 . Targets Rammed 11 | . 4 . 5 . . . 1 . 1 . Kicked . | . . . . . . . . . . . Crushed 1 | . . . 1 . . . . . . . Highest Temperature 337 | . 18 . 86 31 21 . 337 327 87 86 Average Temperature 47 | . 7 . 16 21 7 . 70 80 45 49 Received Heat Transfer 2617 | . 258 9 456 45 . . 792 360 18 679 Effects 1 | . . . . . . . 1 . . . Matter Decay 1 | . . . . . . . 1 . . . Siege Activations . | . . . . . . . . . . . Robots Corrupted . | . . . . . . . . . . . Combat Hostiles . | . . . . . . . . . . . Parts Fried . | . . . . . . . . . . . Impact Corruptions . | . . . . . . . . . . . Robots Melted . | . . . . . . . . . . . Combat Hostiles . | . . . . . . . . . . . Parts Melted 2 | . . 1 . . . . 1 . . . Heat Transferred 1110 | . . . . . . . 1110 . . . Parts Sabotaged . | . . . . . . . . . . . Parts Stolen . | . . . . . . . . . . . Parts Stripped . | . . . . . . . . . . . Power Chain Reactions . | . . . . . . . . . . . Alert | -11 -10 -10 -9 -9 -9 -8 -8 -8 -8 -8 ------- Run | Yrd Mat Min Mat Min Exi Min Mat Sto Rec Scr Peak Influence 787 | 15 259 224 472 179 . 1 398 787 329 . Initial 259 | . 9 8 . 174 . . . 96 259 . Average 186 | 6 84 80 221 93 . . 176 397 146 . Maximum Alert Level 3 | . 1 1 2 . . . 1 3 1 . Low Security (%) 62 | 100 91 84 49 100 . 100 58 26 67 . Level 1 27 | . 8 15 31 . . . 41 32 32 . Level 2 9 | . . . 18 . . . . 31 . . Level 3 1 | . . . . . . . . 10 . . Level 4 . | . . . . . . . . . . . Level 5 . | . . . . . . . . . . . High Security . | . . . . . . . . . . . Max Security . | . . . . . . . . . . . Squads Dispatched 17 | . 2 1 4 . . . 2 8 . . Investigation 5 | . 1 1 2 . . . . 1 . . Extermination . | . . . . . . . . . . . Reinforcement 8 | . 1 . 2 . . . 2 3 . . Assault 3 | . . . . . . . . 3 . . Garrison 1 | . . . . . . . . 1 . . Intercept . | . . . . . . . . . . . Searches Triggered . | . . . . . . . . . . . Construction Impeded 2 | . . . . . . . . 2 . . Haulers Reinforced . | . . . . . . . . . . . Active Scanning Responses . | . . . . . . . . . . . Cargo Convoy Interrupts . | . . . . . . . . . . . Stealth | -11 -10 -10 -9 -9 -9 -8 -8 -8 -8 -8 --------- Run | Yrd Mat Min Mat Min Exi Min Mat Sto Rec Scr Distress Signals 13 | . 2 . 3 . . . 5 3 . . Communications Jammed 3 | . . . . . . . 3 . . . Distress Signals . | . . . . . . . . . . . Times Spotted 222 | . 28 9 59 7 11 . 43 47 2 16 Peak Tracking Total 11 | . 4 3 4 4 4 . 4 11 1 11 Tactical Retreats 14 | . 3 . 3 . 4 . 3 . . 1 Traps | -11 -10 -10 -9 -9 -9 -8 -8 -8 -8 -8 ------- Run | Yrd Mat Min Mat Min Exi Min Mat Sto Rec Scr Traps Triggered 3 | . 1 . 1 . . . . 1 . . Indirectly . | . . . . . . . . . . . Trap Hack Attempts . | . . . . . . . . . . . Triggered . | . . . . . . . . . . . Disarmed . | . . . . . . . . . . . Reprogrammed . | . . . . . . . . . . . Reused . | . . . . . . . . . . . Traps Extracted . | . . . . . . . . . . . Installed . | . . . . . . . . . . . Triggered . | . . . . . . . . . . . Machines | -11 -10 -10 -9 -9 -9 -8 -8 -8 -8 -8 ---------- Run | Yrd Mat Min Mat Min Exi Min Mat Sto Rec Scr Machines Disabled 21 | . . 3 . 1 10 . 2 5 . . Max in Single Turn 2 | . . 1 . 1 2 . 1 1 . . Garrison Access 2 | . . . . . . . 1 1 . . Machines Repaired . | . . . . . . . . . . . Machines Dismantled . | . . . . . . . . . . . Machines Sabotaged . | . . . . . . . . . . . Overloaded Fab Kills . | . . . . . . . . . . . Hacking | -11 -10 -10 -9 -9 -9 -8 -8 -8 -8 -8 --------- Run | Yrd Mat Min Mat Min Exi Min Mat Sto Rec Scr Machines Accessed 61 | . 8 2 14 . 1 1 13 14 6 2 Terminals 44 | . 7 . 11 . . 1 7 12 6 . Fabricators . | . . . . . . . . . . . Repair Stations 5 | . 1 . 2 . . . 1 1 . . Recycling Units 2 | . . . . . . . 2 . . . Scanalyzers 3 | . . . 1 . . . 2 . . . Garrison Access 2 | . . . . . . . 1 1 . . Total Hacks 150 | . 21 2 36 . 1 2 46 28 11 3 Successful 87 | . 12 2 21 . 1 . 27 15 6 3 Failed 63 | . 9 . 15 . . 2 19 13 5 . Catastrophic 5 | . 1 . 2 . . . . 1 1 . Database Lockouts . | . . . . . . . . . . . Manual 84 | . 17 . 24 . 1 2 16 13 11 . Terminals 98 | . 19 . 24 . . 2 18 24 11 . Fabricators . | . . . . . . . . . . . Repair Stations 20 | . 2 . 8 . . . 8 2 . . Recycling Units 5 | . . . . . . . 5 . . . Scanalyzers 17 | . . . 4 . . . 13 . . . Garrison Access 4 | . . . . . . . 2 2 . . Terminal Hacks 28 | . 4 2 3 . 1 . 4 10 1 3 Record 3 | . . . . . . . . . . 3 Part Schematic 1 | . 1 . . . . . . . . . Robot Schematic 1 | . 1 . . . . . . . . . Robot Analysis 1 | . . . . . . . 1 . . . Prototype ID Bank 3 | . 1 . 1 . . . 1 . . . Open Door 8 | . . 2 . . . . . 6 . . Branch Access Points 1 | . . . 1 . . . . . . . Terminal Index 2 | . . . . . . . 1 . 1 . Alert Level 1 | . . . . . . . . 1 . . Unreport Threat 2 | . . . . . . . 1 1 . . Locate Traps 3 | . 1 . . . . . . 2 . . Hauler Manifests 1 | . . . 1 . . . . . . . Derelict Proto ID Bank 1 | . . . . . 1 . . . . . Fabricator Hacks . | . . . . . . . . . . . Repair Station Hacks 14 | . 2 . 5 . . . 5 2 . . Scan Component 8 | . 1 . 3 . . . 3 1 . . Repair 6 | . 1 . 2 . . . 2 1 . . Recycling Unit Hacks 2 | . . . . . . . 2 . . . Retrieve Components 2 | . . . . . . . 2 . . . Scanalyzer 13 | . . . 4 . . . 9 . . . Insert Component 6 | . . . 2 . . . 4 . . . Analyze 7 | . . . 2 . . . 5 . . . Garrison Access Hacks 2 | . . . . . . . 1 1 . . Seal Access 2 | . . . . . . . 1 1 . . Unauthorized Hacks 28 | . 6 . 9 . . . 6 2 5 . Terminals 28 | . 6 . 9 . . . 6 2 5 . Assimilate 2 | . . . . . . . 2 . . . Botnet 6 | . . . 2 . . . 3 1 . . Operators 4 | . 1 . 1 . . . 1 1 . . Skim 16 | . 5 . 6 . . . . . 5 . Fabricators . | . . . . . . . . . . . Repair Stations . | . . . . . . . . . . . Recycling Units . | . . . . . . . . . . . Scanalyzers . | . . . . . . . . . . . Garrison Access . | . . . . . . . . . . . Data Cores Recovered . | . . . . . . . . . . . Used . | . . . . . . . . . . . Hacking Detections 48 | . 8 . 11 . . 1 12 12 4 . Full Trace Events . | . . . . . . . . . . . Feedback Events . | . . . . . . . . . . . Feedback Blocked . | . . . . . . . . . . . Robot Schematics Acquired 1 | . 1 . . . . . . . . . Robots Built . | . . . . . . . . . . . Authchips . | . . . . . . . . . . . Time . | . . . . . . . . . . . Total Robot Build Rating . | . . . . . . . . . . . Part Schematics Acquired 5 | . 1 . 2 . . . 2 . . . Parts Built . | . . . . . . . . . . . Authchips . | . . . . . . . . . . . Time . | . . . . . . . . . . . Total Part Build Rating . | . . . . . . . . . . . Parts Repaired 6 | . 1 . 2 . . . 2 1 . . Time 344 | . 26 . 58 . . . 222 38 . . Parts Recycled . | . . . . . . . . . . . Recycled Matter . | . . . . . . . . . . . Retrieved Matter . | . . . . . . . . . . . Retrieved Components 18 | . . . . . . . 18 . . . Parts Scanalyzed 4 | . . . 2 . . . 2 . . . Part Schematics Acquired 4 | . . . 2 . . . 2 . . . Parts Damaged 2 | . . . . . . . 2 . . . Bothacking | -11 -10 -10 -9 -9 -9 -8 -8 -8 -8 -8 ------------ Run | Yrd Mat Min Mat Min Exi Min Mat Sto Rec Scr Used RIF Installer . | . . . . . . . . . . . Robots Hacked 6 | . . . . . 4 . . . . 2 Non-combat 3 | . . . . . 3 . . . . . Combat 3 | . . . . . 1 . . . . 2 Robot Hacks Applied 6 | . . . . . 4 . . . . 2 parse_system 6 | . . . . . 4 . . . . 2 Relay Couplers Released . | . . . . . . . . . . . Fabnet Peak Effective % . | . . . . . . . . . . . Robots Rewired . | . . . . . . . . . . . Allies Hacked . | . . . . . . . . . . . Hacks Repelled . | . . . . . . . . . . . Allies | -11 -10 -10 -9 -9 -9 -8 -8 -8 -8 -8 -------- Run | Yrd Mat Min Mat Min Exi Min Mat Sto Rec Scr Total Allies 4 | . . . . 1 . . 1 2 . . Largest Group 2 | . . . . 1 . . 1 2 1 . Highest-Rated Group 62 | . . . . 31 . . 10 62 31 . Highest-Rated Ally 31 | . . . . 31 . . 10 31 31 . Total Orders 8 | . . . . . 4 . 1 . . 3 STAY 3 | . . . . . 2 . 1 . . . FOLLOW 2 | . . . . . 1 . . . . 1 RETURN 3 | . . . . . 1 . . . . 2 Ally Attacks 77 | . . . . 6 8 . . 43 7 13 Total Damage 1215 | . . . . 103 292 . . 715 105 . Kills 19 | . . . . 3 3 . . 11 2 . Allies Corrupted . | . . . . . . . . . . . Allies Melted . | . . . . . . . . . . . Turrets Deployed 1 | . . . . . 1 . . . . . Intel | -11 -10 -10 -9 -9 -9 -8 -8 -8 -8 -8 ------- Run | Yrd Mat Min Mat Min Exi Min Mat Sto Rec Scr Robot Analysis Total 1 | . . . . . . . 1 . . . Derelict Logs Recovered 3 | . . 1 . 2 . . . . . . Drone Launches 17 | . . . . . 3 . . . . 14 Drone Recoveries 1 | . . . . . . . . . . 1 Exploration | -11 -10 -10 -9 -9 -9 -8 -8 -8 -8 -8 ------------- Run | Yrd Mat Min Mat Min Exi Min Mat Sto Rec Scr Turns Passed 21704 | 121 1881 828 4483 1187 3492 184 3558 1788 1240 2942 Spaces Moved 8362 | 56 713 422 1377 577 1456 86 1248 662 539 1226 Core 5 | 5 . . . . . . . . . . Treads 5514 | 51 713 33 1183 . 296 . 811 662 539 1226 Legs . | . . . . . . . . . . . Wheels 2843 | . . 389 194 577 1160 86 437 . . . Hover . | . . . . . . . . . . . Flight . | . . . . . . . . . . . Fastest Speed 50 | 50 160 90 150 195 150 195 195 225 225 225 Average Speed 216 | 150 184 156 239 198 204 199 230 225 225 235 Slowest Speed 340 | 160 240 240 320 210 240 210 323 225 225 340 Overloaded Moves . | . . . . . . . . . . . Propulsion Burnouts . | . . . . . . . . . . . Robots Hopped 1 | . . . . . 1 . . . . . Cave-ins Triggered . | . . . . . . . . . . . Exploration Rate (%) 76 | 5 99 99 93 100 88 31 74 91 97 60 Regions Visited 10 Branch Regions 7 Pre-discovered Areas 6 | . 1 . 3 1 . . . . 1 . Known Exits Taken 5 | . . 1 1 . . 1 1 . 1 . Unknown Exits Taken 5 | 1 1 . . 1 1 . . 1 . . Scrap Searched 7 | . . 1 . 1 . . . . . 5 Spaces Dug 45 | . . 11 9 . . . 13 12 . . Terrain Destroyed 100 | . . 11 9 5 5 2 13 55 . . Melee 37 | . . 11 9 . . . 13 4 . . Projectile 6 | . . . . . 4 2 . . . . AOE 56 | . . . . 5 . . . 51 . . Terrain Rammed . | . . . . . . . . . . . Walls Destroyed . | . . . . . . . . . . . Machines Disabled . | . . . . . . . . . . . Actions | -11 -10 -10 -9 -9 -9 -8 -8 -8 -8 -8 --------- Run | Yrd Mat Min Mat Min Exi Min Mat Sto Rec Scr Total 11101 | 75 1125 516 2325 605 1888 92 1750 876 559 1290 Wait 1711 | . 277 6 711 13 278 1 297 103 12 13 Move 8350 | 55 712 421 1376 576 1453 85 1247 661 538 1226 Hop 1 | . . . . . 1 . . . . . Pick Up 137 | 5 19 22 15 2 41 . 17 5 . 11 Fast Attach 27 | 7 1 2 4 . 3 . 5 3 . 2 Attach 45 | . 1 2 6 . 9 . 11 3 . 13 Detach 19 | . . . 1 . 5 . 5 . . 8 Swap 159 | . 17 7 42 7 7 3 37 34 3 2 Drop 126 | . 9 11 27 . 39 . 21 8 . 11 Fire 428 | 8 85 26 117 7 48 3 79 48 5 2 Melee 87 | . . 19 21 . 4 . 30 11 . 2 Ram . | . . . . . . . . . . . Kick . | . . . . . . . . . . . Crush 11 | . 4 . 5 . . . 1 . 1 . Escape Stasis . | . . . . . . . . . . . Rewire . | . . . . . . . . . . . Trap . | . . . . . . . . . . . Miscellaneous . | . . . . . . . . . . . Route ------- -11/Scrapyard -10/Materials (discovered 5 exits: *Mat x3 / *Min x2) -10/Mines (discovered 2 exits: *Mat x2) -9/Materials (discovered 4 exits: *Mat x3 / *Min) -9/Mines (discovered 3 exits: *Mat x2 / *Exi) -9/Exiles -8/Mines -8/Materials (discovered 3 exits: [*Fac x2] / *Sto) -8/Storage (discovered 2 exits: [*Fac] / *Rec) -8/Recycling (discovered 2 exits: *Fac / *Scr) -8/Scraptown (discovered 1 exit: *Fac) History --------- Turn | Location | Event 5 | -11/Scrapyard | Discovered new exit (range 15) 122 | -11/Scrapyard | Entered Materials 300 | -10/Materials | Build established: Mutant 584 | -10/Materials | Discovered new exit (range 16) 856 | -10/Materials | Discovered new exit (range 3) 891 | -10/Materials | Discovered new exit (range 16) 1206 | -10/Materials | Discovered new exit (range 6) 1339 | -10/Materials | Learned location of 1 exit from Recycling 1368 | -10/Materials | Loaded intel: 2 recycling unit locations 1395 | -10/Materials | Learned Storage garrison access intel 1396 | -10/Materials | Loaded intel: 10 trap records 1406 | -10/Materials | Identified exit to Materials 1424 | -10/Materials | Learned 4 Materials zone layouts 1835 | -10/Materials | Repaired Lgt. Treads 2003 | -10/Materials | Entered Mines 2143 | -10/Mines | Discovered exit to Materials (range 15) 2174 | -10/Mines | Met a Derelict shopkeep closing up shop 2177 | -10/Mines | Core integrity fell below 50% 2318 | -10/Mines | Found the Drone Emporium 2396 | -10/Mines | Found Prototype Device 2396 | -10/Mines | Identified Bomb Drone Bay 2508 | -10/Mines | Learned location of 1 exit from Materials 2831 | -10/Mines | Entered Materials 2831 | -9/Materials | Evolved 2 slots: Utility x2 2832 | -9/Materials | Identified exit to Materials 3260 | -9/Materials | Discovered new exit (range 13) 3388 | -9/Materials | Build established: Scavenger-Mutant 4104 | -9/Materials | Build established: Mutant 4608 | -9/Materials | Discovered exit to Materials (range 16) 4660 | -9/Materials | Repaired Lgt. Treads 4693 | -9/Materials | Repaired Hrd. Light Armor Plating 4821 | -9/Materials | Learned location of Zion (-7) 4911 | -9/Materials | Learned Materials stockpile data 5020 | -9/Materials | Learned location of 1 exit from Recycling 5621 | -9/Materials | Identified exit to Mines 5846 | -9/Materials | Build established: Scavenger-Mutant 6380 | -9/Materials | Build established: Mutant 7314 | -9/Materials | Entered Mines 7421 | -9/Mines | Deemed a non-threat by the Exiles lab entrance 7423 | -9/Mines | Discovered new exit (range 5) 7495 | -9/Mines | Received a Rocket Launcher from a helpful Derelict 7809 | -9/Mines | Found a damaged Exp. Sensor Array with a note attached 7812 | -9/Mines | Found Prototype Device 7822 | -9/Mines | Received a Mining Laser from a helpful Derelict 8131 | -9/Mines | Found a hidden stash of uninstalled traps 8501 | -9/Mines | Entered Exiles 8554 | -9/Exiles | Met 8R-AWN 8589 | -9/Exiles | Met EX-HEX 8703 | -9/Exiles | Met EX-DEC 8848 | -9/Exiles | Discovered new exit (range 14) 9257 | -9/Exiles | Met EX-BIN 9293 | -9/Exiles | Aligned with FarCom system 9295 | -9/Exiles | Given EX-Vault access code 9343 | -9/Exiles | Opened EX-Vault 9363 | -9/Exiles | Found AWS/Autocannon 9371 | -9/Exiles | Found Modified TNC 9414 | -9/Exiles | Warned to stay clear of 0b10 Research branches 10243 | -9/Exiles | Attacked by the Exiles 10376 | -9/Exiles | Core integrity fell below 50% 10418 | -9/Exiles | Destroyed 8R-AWN 10424 | -9/Exiles | Lost 6 parts (2n1u3w) 10494 | -9/Exiles | Found Exp. Targeting Computer 10501 | -9/Exiles | Found 8R-AWN's Boregun 10509 | -9/Exiles | Found 8R-AWN's Boregun 10755 | -9/Exiles | Destroyed EX-DEC 10785 | -9/Exiles | Build established: Scavenger-Mutant 10796 | -9/Exiles | Found Exp. Core Analyzer 10802 | -9/Exiles | Destroyed EX-HEX 10826 | -9/Exiles | DAS Turret deployed 10828 | -9/Exiles | Allies destroyed EX-BIN 11845 | -9/Exiles | Build established: Mutant 11993 | -9/Exiles | Stole two prototypes: Modified TNC, AWS/Autocannon 11993 | -9/Exiles | Entered Mines 12177 | -8/Mines | Entered Materials 12177 | -8/Materials | Evolved 2 slots: Propulsion x1, Weapon x1 12178 | -8/Materials | Identified exit to Storage 12291 | -8/Materials | Build established: Scavenger-Mutant 12620 | -8/Materials | Discovered new exit (range 12) 14058 | -8/Materials | Discovered new exit (range 9) 14290 | -8/Materials | Build established: Scavenger-Gunner 14624 | -8/Materials | Identified Exp. Sensor Array 15394 | -8/Materials | Repaired Broken Exp. Sensor Array 15481 | -8/Materials | Repaired Broken Adv. Transmission Jammer 15735 | -8/Materials | Entered Storage 15736 | -8/Storage | Loaded intel: 1 garrison access location 16480 | -8/Storage | Core integrity fell below 50% 16698 | -8/Storage | Repaired Adv. Treads 16737 | -8/Storage | Garrison activated, responded to threat 16749 | -8/Storage | Met a pair of Derelict thieves 16805 | -8/Storage | Destroyed 7 combat bots 16823 | -8/Storage | Build established: Gunner 16831 | -8/Storage | Discovered new exit (range 7) 16935 | -8/Storage | First assault squad dispatched 17508 | -8/Storage | Used back door to open Recycling access 17508 | -8/Storage | Discovered new exit (range 5) 17523 | -8/Storage | Entered Recycling 17523 | -8/Recycling | Accompanied by 1 ally 17524 | -8/Recycling | Identified exit to Factory 17524 | -8/Recycling | Identified exit to Scraptown 18429 | -8/Recycling | Learned Factory stockpile data 18485 | -8/Recycling | Learned location of 2 exits from Factory 18505 | -8/Recycling | Learned 2 Lower Caves zone layouts 18518 | -8/Recycling | Learned location of Storage (-8) 18541 | -8/Recycling | Learned Factory stockpile data 18708 | -8/Recycling | Scanned before Scraplab entrance 18739 | -8/Recycling | Entered Scraplab 18763 | -8/Recycling | Entered Scraptown 18830 | -8/Scraptown | Heard Great Nut preacher, LISTEN AND RECITE! 19059 | -8/Scraptown | Build established: Scavenger-Mutant 19298 | -8/Scraptown | Visited Symbiants 19363 | -8/Scraptown | Visited Cyclists 20061 | -8/Scraptown | Discovered exit to Factory (range 7) 20313 | -8/Scraptown | Visited Awakened 20373 | -8/Scraptown | Visited Red Mages 20446 | -8/Scraptown | Visited TADAMA 20488 | -8/Scraptown | Visited The Evicted 20854 | -8/Scraptown | Build established: Gunner 21001 | -8/Scraptown | Visited Shadow of the Wyrm 21326 | -8/Scraptown | Build established: Mutant 21631 | -8/Scraptown | Turned away by UFD registrar 21655 | -8/Scraptown | Attacked by Scraptown defenders 21674 | -8/Scraptown | Core integrity fell below 20% 21682 | -8/Scraptown | Found Siege Articulator 21689 | -8/Scraptown | Found Tri-treads 21700 | -8/Scraptown | Found Tri-treads 21703 | -8/Scraptown | Found Prototype Ballistic Cannon 21705 | -8/Scraptown | Destroyed by 4Y-9V5(g) with Beamcaster Last Messages --------------- 21688_ Bomb Drone detonates. 21688_ Bomb Drone destroyed. 21688_ 79-NU4(p) destroyed. 21688_ PQ-XSF(c) destroyed. 21689_ Bomb Drone detonates. 21689_ Bomb Drone destroyed. 21689_ M9-P21(g) destroyed. 21689_ Critical hit (Burn: +37). 21689_ Acquired Tri-treads. 21691_ Bomb Drone detonates. 21691_ Bomb Drone destroyed. 21694_ Dropped Bomb Drone Bay. 21694_ Tri-treads destroyed. 21695_ The unstable cave ceiling collapses. 21700_ Acquired Tri-treads. 21701_ Arm. Treads destroyed. 21701_ Critical hit (Burn: +37). 21702_ The unstable cave ceiling collapses. 21703_ Acquired Prototype Ballistic Cannon. Map ----- +----------------------------------------------------+ | ##" "#??# #?????????????????????? | | # ##" "#??# #?????????????????????? | | ##" "#??# #?????????????????????? | | # ### ############ ##########??????????????????? | | [ #??????????????????? | | #??????????????????? | | #??????????????????? | | #??????????????????? | | #??????????????????? | | ################# #??????????????????? | | #???????????????# #??????????????????? | | #???????????????# #??????????????????? | | #??????????????## #??????????????????? | | ###########???## gg #??????????????????? | | # #??## g #####??????????????? | | # #??? / # "#??????????????? | | # """ #??## #??????????????? | | # """ #??# =%! "#??????????????? | | # """ #??# ! = ##??????????????? | | # """ #??# %# ##???????????????? | | # "" #??# *#####??????????????? | | #??# "??????????????? | | # #???# b "??????????????? | | ################# ! ! "??????????????? | | #???### ## ! ! = "??????????????? | | ##### # # @!%! ""?????????????? | | !! "?????????????? | | ! !* ""?????????????? | | [ = "??????????????? | | "??????????????? | | "??????????????? | | %% % #"??????????????? | | = [ #???????????????? | | / ! #???????????????? | | ###### ### # =%[ #???????????????? | | ?# = # ! #???????????????? | | ?#" "##" # #???????????????? | | ?#X "##"" #???????????????? | | ?#" "##"" # #???????????????? | | ?####### #####"" ####???????????????? | | ???????# #???#"" ""# #??????????????????? | | ??????? ???#"" " " ""# #??????????????????? | | ???????" ??#""""""X"""""# #??????????????????? | | ???????" XX?#""""""""""""# #??????????????????? | | ???????"""################# #??????????????????? | | ????????###???????????????# #??????????????????? | | ???????????????############ #??????????????????? | | ???????????????#""""""""""" #??????????????????? | | ???????????????#""""" """"" #??????????????????? | | ?????????#######"""" " "" #??????????????????? | +----------------------------------------------------+ Best States ------------- Heat Dissipation 57 Energy Generation 19 Energy Capacity 500 Matter Stores 300 Matter Capacity 300 Sight Range 16 Robot Scan Range 20 Terrain Scan Density 10 Jamming Range 16 Armor Coverage 600 Resistance: TH 10 Core Shielding 20 Weapon Cycling 25 Evasion (%) 42 Targeting Accuracy 12 Core Analysis 6 Recoil Reduction 3 Salvage Targeting 1 Offensive Hacking 10 Defensive Hacking 10 Item Schematics ----------------- Cargo Storage Unit | -10/Materials | Hacked Arm. Wheel | -9/Materials | Scanalyzed Seismic Detector | -9/Materials | Scanalyzed Exp. Sensor Array | -8/Materials | Scanalyzed Exp. Core Analyzer | -8/Materials | Scanalyzed Robot Schematics ------------------ M-13 Machinist | -10/Materials | Hacked Fabricated ------------ Nothing Alien Tech Used ----------------- None Achievements -------------- None Challenges ------------ None Game ------ Seed SpectralZioniteBeacon Manual? 0 Play Time 02:10:05 Cumulative 508.5 hours Start 2024.09.21 @ 21:38:01 End 2024.09.23 @ 18:41:55 Sessions 25 Manual Loads 0 Difficulty Rogue Special Mode None Game No. 233 Rogue 233 Adventurer 0 Explorer 0 Win Type - Total 12 Types 9/0/1/1/0/0/0/1/0 Lore% 72 Gallery% 89 Achievement% 72 Wizard Run 0 Options --------- Layout 2 ASCII 0 Keyboard 1 Movement Vi Keybinds 0 Fullscreen 2 Font 32/SmallcapsGlow Map View 50x44 Zoom Use 0% Tactical HUD 1 Map Filters NONE Filters NONE Steam 0 RUN: 20052136-62ac-4214-a855-6bf2291c51a2